[Event "Early-Titled-Tuesday-Blitz-April-23-2024"]
[Site "Chess.com"]
[Date "2024.04.23"]
[Round "3"]
[White "Alexander_Donchenko"]
[Black "Tonychess32"]
[Result "1-0"]
[WhiteElo "2881"]
[BlackElo "2540"]
[TimeControl "180+1"]
[EndTime "8:27:44 PDT"]
[Termination "Alexander_Donchenko won on time"]

1. e4 {[%clk 0:03:00.9]} 1... c5 {[%clk 0:02:55.1]} 2. Nc3 {[%clk 0:03:00.5]}
2... Nc6 {[%clk 0:02:53.3]} 3. Bb5 {[%clk 0:03:00]} 3... a6 {[%clk 0:02:48.3]}
4. Bxc6 {[%clk 0:02:59.8]} 4... dxc6 {[%clk 0:02:49.2]} 5. d3 {[%clk 0:02:59]}
5... e5 {[%clk 0:02:47.4]} 6. Nf3 {[%clk 0:02:58.4]} 6... Bd6 {[%clk 0:02:45.7]}
7. h3 {[%clk 0:02:57]} 7... Ne7 {[%clk 0:02:39]} 8. Be3 {[%clk 0:02:56.3]} 8...
O-O {[%clk 0:02:34.7]} 9. O-O {[%clk 0:02:56.3]} 9... f6 {[%clk 0:02:33]} 10. a4
{[%clk 0:02:54.4]} 10... a5 {[%clk 0:02:30.8]} 11. Nd2 {[%clk 0:02:53]} 11... b6
{[%clk 0:02:30.2]} 12. Nc4 {[%clk 0:02:52.8]} 12... Bc7 {[%clk 0:02:30.5]} 13.
Qd2 {[%clk 0:02:50.3]} 13... Be6 {[%clk 0:02:30.4]} 14. b3 {[%clk 0:02:50.1]}
14... Qd7 {[%clk 0:02:20.1]} 15. f4 {[%clk 0:02:49.2]} 15... Bxc4 {[%clk
0:02:11.7]} 16. bxc4 {[%clk 0:02:48]} 16... Ng6 {[%clk 0:02:03.8]} 17. f5 {[%clk
0:02:47.4]} 17... Ne7 {[%clk 0:02:00]} 18. g4 {[%clk 0:02:47.6]} 18... Rab8
{[%clk 0:01:59.1]} 19. Kf2 {[%clk 0:02:46]} 19... h6 {[%clk 0:01:54.6]} 20. Rg1
{[%clk 0:02:43]} 20... Kf7 {[%clk 0:01:53.7]} 21. h4 {[%clk 0:02:42.7]} 21...
Rh8 {[%clk 0:01:52.5]} 22. Rg2 {[%clk 0:02:41.5]} 22... Rbg8 {[%clk 0:01:45.8]}
23. Rag1 {[%clk 0:02:40.5]} 23... Ke8 {[%clk 0:01:45.6]} 24. g5 {[%clk
0:02:39.8]} 24... hxg5 {[%clk 0:01:45.3]} 25. hxg5 {[%clk 0:02:40.7]} 25... Kd8
{[%clk 0:01:39.9]} 26. Ne2 {[%clk 0:02:37.9]} 26... Kc8 {[%clk 0:01:32.9]} 27.
Ke1 {[%clk 0:02:30.1]} 27... Kb7 {[%clk 0:01:23.8]} 28. Kd1 {[%clk 0:02:30.2]}
28... Ka6 {[%clk 0:01:23.3]} 29. Qe1 {[%clk 0:02:21.7]} 29... Qd8 {[%clk
0:01:18.2]} 30. gxf6 {[%clk 0:02:18.8]} 30... gxf6 {[%clk 0:01:17.8]} 31. Rg7
{[%clk 0:02:19.7]} 31... Rxg7 {[%clk 0:01:15.5]} 32. Rxg7 {[%clk 0:02:20.6]}
32... Qf8 {[%clk 0:01:01.3]} 33. Qg3 {[%clk 0:02:18.1]} 33... Bd6 {[%clk
0:00:59.9]} 34. Kd2 {[%clk 0:02:11.5]} 34... b5 {[%clk 0:00:49.7]} 35. cxb5+
{[%clk 0:02:11.3]} 35... cxb5 {[%clk 0:00:50.1]} 36. axb5+ {[%clk 0:02:12.2]}
36... Kxb5 {[%clk 0:00:50.6]} 37. Nc3+ {[%clk 0:02:12.2]} 37... Kc6 {[%clk
0:00:49.5]} 38. Qg1 {[%clk 0:02:09.9]} 38... Rg8 {[%clk 0:00:42.9]} 39. Rxg8
{[%clk 0:02:07.3]} 39... Qxg8 {[%clk 0:00:39.4]} 40. Qxg8 {[%clk 0:01:59.3]}
40... Nxg8 {[%clk 0:00:39.4]} 41. Nd5 {[%clk 0:02:00.2]} 41... Kd7 {[%clk
0:00:19.2]} 42. Kc3 {[%clk 0:01:59.2]} 42... Kc6 {[%clk 0:00:16.8]} 43. Kb3
{[%clk 0:01:58.7]} 43... Bc7 {[%clk 0:00:13.2]} 44. Ka4 {[%clk 0:01:56.2]} 44...
Bb6 {[%clk 0:00:12.2]} 45. Bd2 {[%clk 0:01:53.7]} 45... Bd8 {[%clk 0:00:06.3]}
46. c4 {[%clk 0:01:52.1]} 46... Bb6 {[%clk 0:00:01.1]} 47. Bxa5 {[%clk
0:01:48.9]} 47... Bxa5 {[%clk 0:00:00.8]} 48. Kxa5 {[%clk 0:01:49.8]} 1-0

[Event "Early-Titled-Tuesday-Blitz-April-23-2024"]
[Site "Chess.com"]
[Date "2024.04.23"]
[Round "3"]
[White "B_nn_t"]
[Black "DonJuanEGenaro"]
[Result "1-0"]
[WhiteElo "2558"]
[BlackElo "2026"]
[TimeControl "180+1"]
[EndTime "8:27:44 PDT"]
[Termination "B_nn_t won on time"]

1. e4 {[%clk 0:03:00.9]} 1... c5 {[%clk 0:02:55.2]} 2. Nf3 {[%clk 0:03:00.9]}
2... Nc6 {[%clk 0:02:54.9]} 3. d4 {[%clk 0:03:01.2]} 3... cxd4 {[%clk
0:02:54.9]} 4. Nxd4 {[%clk 0:03:02.1]} 4... Nf6 {[%clk 0:02:55.1]} 5. Nc3 {[%clk
0:03:02.2]} 5... d6 {[%clk 0:02:55.3]} 6. Bg5 {[%clk 0:03:01.7]} 6... Qb6 {[%clk
0:02:54.4]} 7. Nb3 {[%clk 0:02:56.1]} 7... e6 {[%clk 0:02:54]} 8. Be2 {[%clk
0:02:53.6]} 8... a6 {[%clk 0:02:54]} 9. O-O {[%clk 0:02:53.5]} 9... Be7 {[%clk
0:02:46.5]} 10. Qd2 {[%clk 0:02:50.6]} 10... Bd7 {[%clk 0:02:38.2]} 11. Rad1
{[%clk 0:02:40.6]} 11... Qc7 {[%clk 0:02:33.4]} 12. f4 {[%clk 0:02:31.6]} 12...
O-O-O {[%clk 0:02:09.4]} 13. Bxf6 {[%clk 0:02:30.2]} 13... Bxf6 {[%clk
0:01:55.9]} 14. Qxd6 {[%clk 0:02:27]} 14... Qxd6 {[%clk 0:01:34.8]} 15. Rxd6
{[%clk 0:02:26.8]} 15... Bxc3 {[%clk 0:01:19.7]} 16. bxc3 {[%clk 0:02:27.7]}
16... Kc7 {[%clk 0:01:12.3]} 17. Rfd1 {[%clk 0:02:26]} 17... Nb8 {[%clk
0:01:01.9]} 18. e5 {[%clk 0:02:11]} 18... Bc6 {[%clk 0:01:00.3]} 19. c4 {[%clk
0:02:06.4]} 19... b6 {[%clk 0:00:51.5]} 20. c5 {[%clk 0:01:55.5]} 20... b5
{[%clk 0:00:51.1]} 21. Na5 {[%clk 0:01:48.9]} 21... Bd5 {[%clk 0:00:40.2]} 22.
c4 {[%clk 0:01:48.9]} 22... Be4 {[%clk 0:00:29.4]} 23. cxb5 {[%clk 0:01:46.9]}
23... axb5 {[%clk 0:00:27.5]} 24. Bxb5 {[%clk 0:01:44.7]} 24... Bd5 {[%clk
0:00:19.9]} 25. Bc4 {[%clk 0:01:38.8]} 25... Nc6 {[%clk 0:00:15]} 26. Bxd5
{[%clk 0:01:31.6]} 26... Nxa5 {[%clk 0:00:09.6]} 27. Be4 {[%clk 0:01:25.7]}
27... f5 {[%clk 0:00:07.4]} 28. Bf3 {[%clk 0:01:20.3]} 28... Nc4 {[%clk
0:00:06.6]} 29. Rc6+ {[%clk 0:01:17.6]} 29... Kb8 {[%clk 0:00:05.1]} 30. Rb1+
{[%clk 0:01:17.3]} 30... Ka7 {[%clk 0:00:03.9]} 31. Rxe6 {[%clk 0:01:17.3]} 1-0

[Event "Early-Titled-Tuesday-Blitz-April-23-2024"]
[Site "Chess.com"]
[Date "2024.04.23"]
[Round "3"]
[White "LionelMessiFCB"]
[Black "tusplingher"]
[Result "0-1"]
[WhiteElo "2467"]
[BlackElo "2651"]
[TimeControl "180+1"]
[EndTime "8:27:48 PDT"]
[Termination "tusplingher won by resignation"]

1. c4 {[%clk 0:03:00.9]} 1... e5 {[%clk 0:02:54.3]} 2. g3 {[%clk 0:02:59.2]}
2... Nc6 {[%clk 0:02:52.8]} 3. Bg2 {[%clk 0:02:58.7]} 3... g6 {[%clk 0:02:53.7]}
4. Nc3 {[%clk 0:02:56.9]} 4... Bg7 {[%clk 0:02:54.3]} 5. e3 {[%clk 0:02:54.8]}
5... Nge7 {[%clk 0:02:54.6]} 6. Nge2 {[%clk 0:02:54.8]} 6... h5 {[%clk
0:02:54.4]} 7. d4 {[%clk 0:02:53.7]} 7... exd4 {[%clk 0:02:54.1]} 8. exd4 {[%clk
0:02:53.2]} 8... h4 {[%clk 0:02:53]} 9. d5 {[%clk 0:02:52.3]} 9... Ne5 {[%clk
0:02:48.1]} 10. b3 {[%clk 0:02:22.4]} 10... h3 {[%clk 0:02:45.6]} 11. Be4 {[%clk
0:02:22]} 11... f5 {[%clk 0:02:40.7]} 12. f4 {[%clk 0:02:18.3]} 12... Nxc4
{[%clk 0:02:18.5]} 13. bxc4 {[%clk 0:02:08.8]} 13... fxe4 {[%clk 0:02:17.7]} 14.
Qc2 {[%clk 0:02:09.7]} 14... d6 {[%clk 0:02:12.8]} 15. Be3 {[%clk 0:01:31.6]}
15... Bf5 {[%clk 0:02:04.8]} 16. Rb1 {[%clk 0:01:29]} 16... O-O {[%clk
0:02:03.5]} 17. Rxb7 {[%clk 0:01:27.6]} 17... Rb8 {[%clk 0:02:03]} 18. Rxa7
{[%clk 0:01:22.4]} 18... Bg4 {[%clk 0:01:53.9]} 19. O-O {[%clk 0:01:06.2]} 19...
Nf5 {[%clk 0:01:50.7]} 20. Bc1 {[%clk 0:00:52.7]} 20... Nd4 {[%clk 0:01:42.8]}
21. Qd2 {[%clk 0:00:48.3]} 21... Nf3+ {[%clk 0:01:27]} 22. Rxf3 {[%clk
0:00:46.7]} 22... exf3 {[%clk 0:01:27.3]} 23. Nd4 {[%clk 0:00:43]} 23... Qf6
{[%clk 0:01:24.8]} 24. Ncb5 {[%clk 0:00:38]} 24... Rfe8 {[%clk 0:01:12.4]} 25.
Kf2 {[%clk 0:00:25.5]} 25... Rxb5 {[%clk 0:01:09.3]} 26. Nxb5 {[%clk 0:00:24.2]}
26... Re2+ {[%clk 0:01:09.1]} 27. Qxe2 {[%clk 0:00:22.2]} 27... fxe2 {[%clk
0:01:09.6]} 28. Be3 {[%clk 0:00:20.3]} 28... Qa1 {[%clk 0:01:05.3]} 29. Bd2
{[%clk 0:00:19.2]} 29... Qf1+ {[%clk 0:01:03.2]} 0-1

[Event "Early-Titled-Tuesday-Blitz-April-23-2024"]
[Site "Chess.com"]
[Date "2024.04.23"]
[Round "3"]
[White "NovozhilovSemen"]
[Black "ReinisUz"]
[Result "1-0"]
[WhiteElo "2642"]
[BlackElo "2460"]
[TimeControl "180+1"]
[EndTime "8:27:58 PDT"]
[Termination "NovozhilovSemen won by resignation"]

1. d4 {[%clk 0:03:00.9]} 1... d5 {[%clk 0:02:57.5]} 2. c4 {[%clk 0:03:00.4]}
2... c6 {[%clk 0:02:57.8]} 3. cxd5 {[%clk 0:02:59.3]} 3... cxd5 {[%clk
0:02:57.9]} 4. Bg5 {[%clk 0:02:59.3]} 4... Nc6 {[%clk 0:02:57]} 5. e3 {[%clk
0:02:58.1]} 5... Qb6 {[%clk 0:02:53.7]} 6. Qd2 {[%clk 0:02:57.2]} 6... Bf5
{[%clk 0:02:45]} 7. Nc3 {[%clk 0:02:56]} 7... e6 {[%clk 0:02:44.8]} 8. f4 {[%clk
0:02:52]} 8... h6 {[%clk 0:02:38.1]} 9. Bh4 {[%clk 0:02:51.1]} 9... Be7 {[%clk
0:02:38.1]} 10. Bxe7 {[%clk 0:02:49.8]} 10... Ngxe7 {[%clk 0:02:38]} 11. Nf3
{[%clk 0:02:50.5]} 11... O-O {[%clk 0:02:34.7]} 12. Be2 {[%clk 0:02:44.2]} 12...
Rac8 {[%clk 0:02:17.5]} 13. O-O {[%clk 0:02:42.3]} 13... Na5 {[%clk 0:02:04.1]}
14. b3 {[%clk 0:02:39.6]} 14... Qb4 {[%clk 0:02:02.3]} 15. Rfc1 {[%clk
0:02:38.5]} 15... Rc6 {[%clk 0:01:52.8]} 16. Nb5 {[%clk 0:02:30.8]} 16... Qxd2
{[%clk 0:01:43.1]} 17. Nxd2 {[%clk 0:02:31.7]} 17... a6 {[%clk 0:01:40.7]} 18.
Rxc6 {[%clk 0:02:30]} 18... Naxc6 {[%clk 0:01:35.6]} 19. Nd6 {[%clk 0:02:27.9]}
19... b5 {[%clk 0:01:30.1]} 20. a4 {[%clk 0:02:19.3]} 20... Rd8 {[%clk
0:01:02.6]} 21. Nb7 {[%clk 0:02:01.9]} 21... Rb8 {[%clk 0:00:57.4]} 22. Nc5
{[%clk 0:02:02.1]} 22... bxa4 {[%clk 0:00:49.8]} 23. Nxa6 {[%clk 0:02:02.4]}
23... Rxb3 {[%clk 0:00:37.2]} 24. Kf2 {[%clk 0:01:39.2]} 24... Rb2 {[%clk
0:00:33]} 25. Ke1 {[%clk 0:01:37]} 25... Nb4 {[%clk 0:00:26.5]} 26. Rxa4 {[%clk
0:01:32.7]} 26... Nc2+ {[%clk 0:00:24.4]} 27. Kf2 {[%clk 0:01:32.9]} 27... Nxd4
{[%clk 0:00:21.1]} 28. Rxd4 {[%clk 0:01:32.1]} 28... Nc6 {[%clk 0:00:19.6]} 29.
Nf3 {[%clk 0:01:28.3]} 29... Bg4 {[%clk 0:00:14]} 30. Ra4 {[%clk 0:01:22.5]}
30... d4 {[%clk 0:00:12.2]} 31. exd4 {[%clk 0:01:22]} 31... Bf5 {[%clk
0:00:12.2]} 32. Nc5 {[%clk 0:01:21.7]} 32... Kh7 {[%clk 0:00:10.2]} 33. Ke3
{[%clk 0:01:22]} 33... Ne7 {[%clk 0:00:09.1]} 34. Ne5 {[%clk 0:01:17.6]} 34...
Nd5+ {[%clk 0:00:09.4]} 35. Kf3 {[%clk 0:01:18.3]} 35... Rxe2 {[%clk 0:00:05.9]}
36. Kxe2 {[%clk 0:01:19.2]} 36... Nc3+ {[%clk 0:00:06.8]} 37. Kf3 {[%clk
0:01:18.5]} 37... Nxa4 {[%clk 0:00:07.7]} 38. Nxa4 {[%clk 0:01:19.3]} 38... f6
{[%clk 0:00:08.2]} 39. Nc4 {[%clk 0:01:18.7]} 1-0

[Event "Early-Titled-Tuesday-Blitz-April-23-2024"]
[Site "Chess.com"]
[Date "2024.04.23"]
[Round "3"]
[White "AlphaGoosee"]
[Black "gabduschew"]
[Result "1-0"]
[WhiteElo "2629"]
[BlackElo "2444"]
[TimeControl "180+1"]
[EndTime "8:28:02 PDT"]
[Termination "AlphaGoosee won by resignation"]

1. e4 {[%clk 0:03:00.9]} 1... Nc6 {[%clk 0:02:59.5]} 2. d4 {[%clk 0:02:58.6]}
2... d5 {[%clk 0:02:59.5]} 3. e5 {[%clk 0:02:57.6]} 3... Bf5 {[%clk 0:02:58.8]}
4. c3 {[%clk 0:02:56.5]} 4... Qd7 {[%clk 0:02:58]} 5. Bd3 {[%clk 0:02:57]} 5...
h5 {[%clk 0:02:57.2]} 6. f4 {[%clk 0:02:53]} 6... Nh6 {[%clk 0:02:43.1]} 7. Nf3
{[%clk 0:02:52.8]} 7... Bxd3 {[%clk 0:02:39.2]} 8. Qxd3 {[%clk 0:02:53.7]} 8...
Qf5 {[%clk 0:02:39.4]} 9. Qe2 {[%clk 0:02:43.7]} 9... e6 {[%clk 0:02:36.6]} 10.
b4 {[%clk 0:02:38.3]} 10... O-O-O {[%clk 0:02:28.1]} 11. b5 {[%clk 0:02:29.3]}
11... Na5 {[%clk 0:02:27]} 12. O-O {[%clk 0:02:27]} 12... Be7 {[%clk 0:02:22.1]}
13. Ba3 {[%clk 0:02:26.2]} 13... Rhe8 {[%clk 0:02:15.1]} 14. Bxe7 {[%clk
0:02:24.7]} 14... Rxe7 {[%clk 0:02:14.7]} 15. Nbd2 {[%clk 0:02:24.7]} 15... Qc2
{[%clk 0:02:06.8]} 16. Rfc1 {[%clk 0:02:21.6]} 16... Qa4 {[%clk 0:02:06.1]} 17.
c4 {[%clk 0:02:21.1]} 17... dxc4 {[%clk 0:02:01.8]} 18. Nxc4 {[%clk 0:02:17.9]}
18... Nf5 {[%clk 0:01:58]} 19. b6 {[%clk 0:01:47.4]} 19... Nxd4 {[%clk
0:01:19.4]} 20. Nxd4 {[%clk 0:01:39.6]} 20... Rxd4 {[%clk 0:01:18.7]} 21. Nb2
{[%clk 0:01:12.1]} 21... Qa3 {[%clk 0:01:05.4]} 22. Rc3 {[%clk 0:00:54.2]} 22...
Qxc3 {[%clk 0:00:51.9]} 23. bxa7 {[%clk 0:00:54.5]} 23... Rd2 {[%clk 0:00:38.8]}
24. a8=Q+ {[%clk 0:00:54.3]} 24... Kd7 {[%clk 0:00:39]} 25. Rd1 {[%clk
0:00:48.7]} 25... Qd4+ {[%clk 0:00:36]} 26. Kh1 {[%clk 0:00:44.1]} 26... Rxd1+
{[%clk 0:00:35.5]} 27. Qxd1 {[%clk 0:00:43.8]} 27... Qxd1+ {[%clk 0:00:35.2]}
28. Nxd1 {[%clk 0:00:44.7]} 28... b6 {[%clk 0:00:34.5]} 29. h3 {[%clk
0:00:37.6]} 1-0

[Event "Early-Titled-Tuesday-Blitz-April-23-2024"]
[Site "Chess.com"]
[Date "2024.04.23"]
[Round "3"]
[White "Shivananda1964"]
[Black "AcostaPablo"]
[Result "0-1"]
[WhiteElo "2354"]
[BlackElo "2608"]
[TimeControl "180+1"]
[EndTime "8:28:03 PDT"]
[Termination "AcostaPablo won on time"]

1. d4 {[%clk 0:02:59.7]} 1... Nf6 {[%clk 0:02:59.7]} 2. Nf3 {[%clk 0:02:59.6]}
2... g6 {[%clk 0:02:59.8]} 3. g3 {[%clk 0:03:00]} 3... Bg7 {[%clk 0:03:00.2]} 4.
Bg2 {[%clk 0:03:00.7]} 4... O-O {[%clk 0:03:00.9]} 5. O-O {[%clk 0:03:01.1]}
5... d6 {[%clk 0:03:01.6]} 6. Nc3 {[%clk 0:03:00.2]} 6... Nbd7 {[%clk
0:03:01.5]} 7. e4 {[%clk 0:03:00.5]} 7... e5 {[%clk 0:03:02.1]} 8. Re1 {[%clk
0:02:59.2]} 8... h6 {[%clk 0:02:58.8]} 9. h3 {[%clk 0:02:58.2]} 9... c6 {[%clk
0:02:54.9]} 10. a4 {[%clk 0:02:58.2]} 10... a5 {[%clk 0:02:53]} 11. b3 {[%clk
0:02:57.5]} 11... Re8 {[%clk 0:02:51.4]} 12. Ba3 {[%clk 0:02:56.3]} 12... exd4
{[%clk 0:02:46.8]} 13. Nxd4 {[%clk 0:02:55.7]} 13... Nc5 {[%clk 0:02:46.2]} 14.
Qd2 {[%clk 0:02:50.8]} 14... Qb6 {[%clk 0:02:44.2]} 15. Rad1 {[%clk 0:02:46.6]}
15... Bd7 {[%clk 0:02:40.8]} 16. Kh2 {[%clk 0:02:37.7]} 16... Rad8 {[%clk
0:02:39.2]} 17. f4 {[%clk 0:02:37.7]} 17... Bc8 {[%clk 0:02:37.9]} 18. Qf2
{[%clk 0:02:16.2]} 18... Ne6 {[%clk 0:02:22.2]} 19. Nce2 {[%clk 0:01:11.9]}
19... h5 {[%clk 0:02:02.6]} 20. Kg1 {[%clk 0:01:08.7]} 20... Nc5 {[%clk
0:01:56.1]} 21. Nc3 {[%clk 0:01:03.3]} 21... h4 {[%clk 0:01:48.6]} 22. g4 {[%clk
0:00:45.1]} 22... Bxg4 {[%clk 0:01:47]} 23. hxg4 {[%clk 0:00:42.1]} 23... Nxg4
{[%clk 0:01:46.1]} 24. Qxh4 {[%clk 0:00:34.2]} 24... Ne6 {[%clk 0:01:21.2]} 25.
Qxg4 {[%clk 0:00:19.8]} 25... Bxd4+ {[%clk 0:01:19.3]} 26. Kh1 {[%clk
0:00:17.8]} 26... Bxc3 {[%clk 0:01:17]} 27. f5 {[%clk 0:00:18.3]} 27... Ng7
{[%clk 0:01:09]} 28. fxg6 {[%clk 0:00:15.1]} 28... fxg6 {[%clk 0:01:07.1]} 29.
Qxg6 {[%clk 0:00:07.2]} 29... Re6 {[%clk 0:01:03.4]} 30. Qg5 {[%clk 0:00:03.1]}
30... Re5 {[%clk 0:01:01.4]} 0-1

[Event "Early-Titled-Tuesday-Blitz-April-23-2024"]
[Site "Chess.com"]
[Date "2024.04.23"]
[Round "3"]
[White "JaackCamel"]
[Black "DvaHrasta"]
[Result "0-1"]
[WhiteElo "2200"]
[BlackElo "2419"]
[TimeControl "180+1"]
[EndTime "8:28:03 PDT"]
[Termination "DvaHrasta won by resignation"]

1. d4 {[%clk 0:03:00.9]} 1... Nf6 {[%clk 0:02:59.2]} 2. c4 {[%clk 0:02:58]} 2...
e6 {[%clk 0:02:59.2]} 3. Nc3 {[%clk 0:02:57.1]} 3... Bb4 {[%clk 0:02:58.7]} 4.
Qc2 {[%clk 0:02:56.6]} 4... d5 {[%clk 0:02:57.5]} 5. Nf3 {[%clk 0:02:48]} 5...
O-O {[%clk 0:02:55.1]} 6. a3 {[%clk 0:02:46.1]} 6... Bxc3+ {[%clk 0:02:54.2]} 7.
Qxc3 {[%clk 0:02:46]} 7... dxc4 {[%clk 0:02:46.5]} 8. Qxc4 {[%clk 0:02:45.2]}
8... a6 {[%clk 0:02:46.7]} 9. Bg5 {[%clk 0:02:41.6]} 9... b5 {[%clk 0:02:42.2]}
10. Qc2 {[%clk 0:02:37.4]} 10... Bb7 {[%clk 0:02:39.2]} 11. e3 {[%clk
0:02:28.8]} 11... Nbd7 {[%clk 0:02:35.4]} 12. Bd3 {[%clk 0:02:25.9]} 12... h6
{[%clk 0:02:32.7]} 13. Bh4 {[%clk 0:02:25.3]} 13... Rc8 {[%clk 0:02:28.5]} 14.
O-O {[%clk 0:02:19.5]} 14... c5 {[%clk 0:02:25.8]} 15. Qe2 {[%clk 0:02:09.7]}
15... c4 {[%clk 0:02:21]} 16. Bc2 {[%clk 0:02:05.6]} 16... Qb6 {[%clk
0:02:13.6]} 17. Rad1 {[%clk 0:01:57.6]} 17... a5 {[%clk 0:02:10.7]} 18. Ne5
{[%clk 0:01:53.9]} 18... Nxe5 {[%clk 0:02:00.4]} 19. dxe5 {[%clk 0:01:53]} 19...
Qc6 {[%clk 0:01:54.8]} 20. f3 {[%clk 0:01:44.5]} 20... Nd5 {[%clk 0:01:45]} 21.
Be4 {[%clk 0:01:39.3]} 21... c3 {[%clk 0:01:38.8]} 22. Rc1 {[%clk 0:01:19.1]}
22... b4 {[%clk 0:01:31.5]} 23. Rfd1 {[%clk 0:01:09.4]} 23... Ba6 {[%clk
0:01:23.7]} 24. Qf2 {[%clk 0:00:28.9]} 24... Qb5 {[%clk 0:01:14.4]} 25. Bxd5
{[%clk 0:00:24.5]} 25... exd5 {[%clk 0:01:12.3]} 26. bxc3 {[%clk 0:00:20.2]}
26... bxc3 {[%clk 0:01:10.3]} 27. Rc2 {[%clk 0:00:13.6]} 27... Qb3 {[%clk
0:01:02.5]} 28. Rdc1 {[%clk 0:00:13.3]} 28... Bd3 {[%clk 0:01:00.5]} 29. Be7
{[%clk 0:00:09.8]} 29... Rfe8 {[%clk 0:00:55.4]} 30. Bd6 {[%clk 0:00:10]} 30...
Bxc2 {[%clk 0:00:53.4]} 31. Rxc2 {[%clk 0:00:09.9]} 31... Qb1+ {[%clk
0:00:52.2]} 0-1

[Event "Early-Titled-Tuesday-Blitz-April-23-2024"]
[Site "Chess.com"]
[Date "2024.04.23"]
[Round "3"]
[White "JonasEilenberg"]
[Black "GM_dmitrij"]
[Result "1-0"]
[WhiteElo "2768"]
[BlackElo "3003"]
[TimeControl "180+1"]
[EndTime "8:28:05 PDT"]
[Termination "JonasEilenberg won by resignation"]

1. d4 {[%clk 0:03:00.9]} 1... d5 {[%clk 0:02:52.3]} 2. c4 {[%clk 0:03:01.3]}
2... e6 {[%clk 0:02:51.7]} 3. Nc3 {[%clk 0:03:01.5]} 3... Nf6 {[%clk 0:02:51.6]}
4. Bg5 {[%clk 0:03:01.7]} 4... Bb4 {[%clk 0:02:44.3]} 5. e3 {[%clk 0:03:00.3]}
5... h6 {[%clk 0:02:43.9]} 6. Bh4 {[%clk 0:02:53]} 6... g5 {[%clk 0:02:43.7]} 7.
Bg3 {[%clk 0:02:53.5]} 7... Ne4 {[%clk 0:02:44.3]} 8. Qc2 {[%clk 0:02:53.5]}
8... c5 {[%clk 0:02:38.7]} 9. a3 {[%clk 0:02:39.1]} 9... Bxc3+ {[%clk
0:02:31.2]} 10. bxc3 {[%clk 0:02:39]} 10... cxd4 {[%clk 0:02:31.6]} 11. exd4
{[%clk 0:02:34.7]} 11... Nc6 {[%clk 0:02:29.8]} 12. Bd3 {[%clk 0:02:31.9]} 12...
Nxg3 {[%clk 0:02:28.4]} 13. hxg3 {[%clk 0:02:32.7]} 13... dxc4 {[%clk 0:02:29]}
14. Bxc4 {[%clk 0:02:29.5]} 14... b6 {[%clk 0:02:27.1]} 15. Nf3 {[%clk
0:02:26.5]} 15... Bb7 {[%clk 0:02:27.2]} 16. Rd1 {[%clk 0:02:09.7]} 16... Qf6
{[%clk 0:02:13.2]} 17. Qa4 {[%clk 0:01:49.5]} 17... O-O {[%clk 0:02:10]} 18. O-O
{[%clk 0:01:41]} 18... Rac8 {[%clk 0:02:02.5]} 19. Bd3 {[%clk 0:01:40.7]} 19...
Kg7 {[%clk 0:01:39.8]} 20. Bb1 {[%clk 0:01:38.7]} 20... Rh8 {[%clk 0:01:08.7]}
21. Rfe1 {[%clk 0:01:38.1]} 21... Na5 {[%clk 0:01:08.5]} 22. Qc2 {[%clk
0:01:33.7]} 22... Bxf3 {[%clk 0:01:03.7]} 23. gxf3 {[%clk 0:01:34.6]} 23... Qxf3
{[%clk 0:01:04.4]} 24. Re3 {[%clk 0:01:30.7]} 24... Qf6 {[%clk 0:01:04.6]} 25.
Qe2 {[%clk 0:01:26.1]} 25... Nc4 {[%clk 0:00:45.4]} 26. Rf3 {[%clk 0:01:26.1]}
26... Qe7 {[%clk 0:00:45.8]} 27. d5 {[%clk 0:01:16.4]} 27... e5 {[%clk
0:00:39.5]} 28. d6 {[%clk 0:00:54.7]} 28... Nxd6 {[%clk 0:00:38.9]} 29. Ba2
{[%clk 0:00:54.8]} 29... e4 {[%clk 0:00:35]} 30. Rxd6 {[%clk 0:00:53.5]} 30...
Qxd6 {[%clk 0:00:16.8]} 31. Rxf7+ {[%clk 0:00:53.3]} 31... Kg6 {[%clk
0:00:17.7]} 32. Qxe4+ {[%clk 0:00:52.6]} 32... Kh5 {[%clk 0:00:18.3]} 33. Qf3+
{[%clk 0:00:49.5]} 33... Kg6 {[%clk 0:00:16.7]} 34. Bb1+ {[%clk 0:00:48.1]} 1-0

[Event "Early-Titled-Tuesday-Blitz-April-23-2024"]
[Site "Chess.com"]
[Date "2024.04.23"]
[Round "3"]
[White "HATilay"]
[Black "JacksterThePro"]
[Result "1-0"]
[WhiteElo "2651"]
[BlackElo "2471"]
[TimeControl "180+1"]
[EndTime "8:28:06 PDT"]
[Termination "HATilay won by checkmate"]

1. e4 {[%clk 0:03:00.9]} 1... c6 {[%clk 0:02:59.6]} 2. d4 {[%clk 0:03:00.7]}
2... d5 {[%clk 0:03:00.1]} 3. e5 {[%clk 0:03:01.2]} 3... Bf5 {[%clk 0:03:00]} 4.
Bd3 {[%clk 0:03:01.6]} 4... Bxd3 {[%clk 0:02:58.9]} 5. Qxd3 {[%clk 0:03:02.5]}
5... e6 {[%clk 0:02:51.6]} 6. Ne2 {[%clk 0:03:02.7]} 6... Qa5+ {[%clk
0:02:46.5]} 7. Nbc3 {[%clk 0:03:02.3]} 7... Qa6 {[%clk 0:02:45.6]} 8. Qh3 {[%clk
0:03:02.7]} 8... Ne7 {[%clk 0:02:39.1]} 9. O-O {[%clk 0:03:01.9]} 9... c5 {[%clk
0:02:30.5]} 10. a4 {[%clk 0:03:02.4]} 10... Qa5 {[%clk 0:01:53.1]} 11. Nb5
{[%clk 0:02:59.5]} 11... Nf5 {[%clk 0:01:51]} 12. dxc5 {[%clk 0:02:46.1]} 12...
Bxc5 {[%clk 0:01:50.5]} 13. c3 {[%clk 0:02:46]} 13... Qd8 {[%clk 0:01:39.2]} 14.
b4 {[%clk 0:02:42.1]} 14... Be7 {[%clk 0:01:37.2]} 15. g4 {[%clk 0:02:11.4]}
15... Nh4 {[%clk 0:01:36.2]} 16. f4 {[%clk 0:02:12]} 16... h5 {[%clk 0:01:35.7]}
17. f5 {[%clk 0:02:11]} 17... hxg4 {[%clk 0:01:35.6]} 18. Qxg4 {[%clk
0:02:07.7]} 18... Nxf5 {[%clk 0:01:07.8]} 19. Ned4 {[%clk 0:01:39.7]} 19... Rh4
{[%clk 0:00:36.5]} 20. Qg2 {[%clk 0:01:21.3]} 20... a6 {[%clk 0:00:16]} 21. Nxf5
{[%clk 0:00:40.9]} 21... exf5 {[%clk 0:00:16.9]} 22. Rxf5 {[%clk 0:00:36.8]}
22... axb5 {[%clk 0:00:12.3]} 23. Be3 {[%clk 0:00:36.5]} 23... g6 {[%clk
0:00:10.5]} 24. e6 {[%clk 0:00:33]} 24... gxf5 {[%clk 0:00:09.1]} 25. Qg8+
{[%clk 0:00:33.1]} 25... Bf8 {[%clk 0:00:09.1]} 26. Qxf7# {[%clk 0:00:34]} 1-0